fUSD/lending_fUSD_20241225
["ID","MTS","AMOUNT","RATE_DAILY","PERIOD"]
[346579943,1735111844124,-500.0,9.796e-05,2]
[346579944,1735111844134,-789.11,9.796e-05,2]
[346579945,1735111844143,-465.2205923,9.796e-05,2]
[346579946,1735111844153,-500.0,9.796e-05,2]
[346579947,1735111844162,-547.88743409,9.796e-05,2]
[346579948,1735111844173,-500.47165586,9.796e-05,2]
[346579949,1735111844183,-2711.35,9.796e-05,2]
[346579950,1735111844192,-500.0,9.796e-05,2]
[346579951,1735111844202,-500.0,9.796e-05,2]
[346579952,1735111844211,-502.42067536,9.796e-05,2]
[346579953,1735111844221,-788.01,9.796e-05,2]
[346579954,1735111844230,-500.0,9.796e-05,2]
[346579955,1735111844239,-628.28694924,9.796e-05,2]
[346579956,1735111844249,-500.0,9.796e-05,2]
[346579957,1735111844258,-500.0,9.796e-05,2]
[346579958,1735111844268,-500.0,9.796e-05,2]
[346579959,1735111844278,-503.46959388,9.796e-05,2]
[346579960,1735111844288,-507.93224873,9.796e-05,2]
[346579961,1735111844297,-724.84,9.796e-05,2]
[346579962,1735111844307,-1812.89,9.796e-05,2]
[346579963,1735111844317,-500.0,9.796e-05,2]
[346579964,1735111844327,-500.0,9.796e-05,2]
[346579965,1735111844337,-500.0,9.796e-05,2]
[346579966,1735111844347,-532.96,9.796e-05,2]
[346579967,1735111844356,-1041.71,9.796e-05,2]
[346579968,1735111844366,-1009.32,9.796e-05,2]
[346579969,1735111844375,-500.0,9.796e-05,2]
[346579970,1735111844385,-500.0,9.796e-05,2]
[346579971,1735111844394,-500.0,9.796e-05,2]
[346579972,1735111844404,-500.0,9.796e-05,2]
[346579973,1735111844416,-500.0,9.796e-05,2]
[346579974,1735111844426,-500.0,9.796e-05,2]
[346579975,1735111844436,-500.0,9.796e-05,2]
[346579976,1735111844445,-500.0,9.796e-05,2]
[346579977,1735111844456,-503.76959116,9.796e-05,2]
[346579978,1735111844465,-500.0,9.796e-05,2]
[346579979,1735111844475,-500.0,9.796e-05,2]
[346579980,1735111844484,-1614.18,9.796e-05,2]
[346579981,1735111844495,-675.23,9.796e-05,2]
[346579982,1735111844504,-805.87,9.796e-05,2]
[346579983,1735111844513,-500.0,9.796e-05,2]
[346579984,1735111844523,-1095.09,9.796e-05,2]
[346579985,1735111844533,-1994.69,9.796e-05,2]
[346579986,1735111844542,-755.6,9.796e-05,2]
[346579987,1735111844551,-500.0,9.796e-05,2]
[346579988,1735111844561,-921.2,9.796e-05,2]
[346579989,1735111844570,-500.0,9.796e-05,2]
[346579990,1735111844580,-1032.26,9.796e-05,2]
[346579991,1735111844589,-1390.12,9.796e-05,2]
[346579992,1735111844599,-500.0,9.796e-05,2]
[346579993,1735111844800,-503.66870865,9.796e-05,2]
[346579994,1735111844811,-506.63734908,9.796e-05,2]
[346579995,1735111844821,-517.86205659,9.796e-05,2]
[346579996,1735111844830,-504.23327851,9.796e-05,2]
[346579997,1735111844839,-1031.65,9.796e-05,2]
[346579998,1735111844848,-500.0,9.796e-05,2]
[346579999,1735111844857,-500.0,9.796e-05,2]
[346580000,1735111844867,-810.94,9.796e-05,2]
[346580001,1735111844876,-515.31,9.796e-05,2]
[346580002,1735111844885,-500.0,9.796e-05,2]
[346580003,1735111844895,-500.0,9.796e-05,2]
[346580004,1735111844904,-500.0,9.796e-05,2]
[346580005,1735111844913,-519.98245074,9.796e-05,2]
[346580006,1735111844922,-896.42,9.796e-05,2]
[346580007,1735111844931,-500.0,9.796e-05,2]
[346580008,1735111844940,-1887.61844804,9.796e-05,2]
[346580019,1735111846642,-605.4,9.794e-05,2]
[346580020,1735111846653,-634.25,9.794e-05,2]
[346580021,1735111846663,-2975.67367057,9.795e-05,2]
[346580022,1735111846706,-500.0,9.794e-05,2]
[346580023,1735111846715,-3902.70632943,9.795e-05,2]
[346580024,1735111846725,-862.46155196,9.796e-05,2]
[346580025,1735111846734,-500.0,9.796e-05,2]
[346580026,1735111846743,-501.31730306,9.796e-05,2]
[346580027,1735111846752,-500.0,9.796e-05,2]
[346580028,1735111846762,-501.64656287,9.796e-05,2]
[346580029,1735111846771,-500.0,9.796e-05,2]
[346580030,1735111846780,-557.91,9.796e-05,2]
[346580031,1735111846992,-500.0,9.796e-05,2]
[346580032,1735111847002,-500.0,9.796e-05,2]
[346580033,1735111847011,-500.0,9.796e-05,2]
[346580034,1735111847021,-1247.82,9.796e-05,2]
[346580035,1735111847030,-502.69955567,9.796e-05,2]
[346580036,1735111847039,-500.0,9.796e-05,2]
[346580037,1735111847048,-796.0,9.796e-05,2]
[346580038,1735111847058,-394.40819281,9.796e-05,2]
[346580043,1735111995748,250.0,9.314e-05,2]
[346580044,1735112122558,353.11,9.343e-05,2]
[346580046,1735112175710,571.76,8.219e-05,2]
[346580047,1735112469092,250.0,9.233e-05,2]
[346580051,1735112623801,23900.0,9.24e-05,2]
[346580058,1735112761711,163.05,9.201e-05,2]
[346580067,1735112885863,1000.0,9.19e-05,2]
[346580068,1735112938599,255.11,9.187e-05,2]
[346580514,1735113031507,-609.86344662,9.692e-05,2]
[346580516,1735113031587,-66.18769686,9.692e-05,2]
[346580517,1735113031597,-8111.17318052,9.693e-05,2]
[346580595,1735113037484,-54461.43981948,9.693e-05,2]
[346580596,1735113037494,-8177.36087738,9.753e-05,2]
[346580597,1735113037503,-150.0,9.753e-05,2]
[346580598,1735113037513,-151.87683242,9.791e-05,2]
[346580599,1735113037522,-151.87683242,9.792e-05,2]
[346580600,1735113037532,-900.55,9.792e-05,2]
[346580601,1735113037541,-518.73,9.792e-05,2]
[346580602,1735113037551,-984.8,9.792e-05,2]
[346580603,1735113037561,-3641.54,9.792e-05,2]
[346580604,1735113037572,-500.0,9.792e-05,2]
[346580605,1735113037581,-3729.27,9.792e-05,2]
[346580606,1735113037592,-2531.93,9.792e-05,2]
[346580607,1735113037601,-1985.08,9.792e-05,2]
[346580608,1735113037611,-6170.63,9.792e-05,2]
[346580609,1735113037620,-151.87683242,9.792e-05,2]
[346580610,1735113037630,-1754.28,9.792e-05,2]
[346580611,1735113037640,-4701.69,9.792e-05,2]
[346580612,1735113037649,-5147.6,9.792e-05,2]
[346580613,1735113037659,-2696.08,9.792e-05,2]
[346580614,1735113037668,-1625.75,9.792e-05,2]
[346580615,1735113037677,-14226.45,9.792e-05,2]
[346580616,1735113037687,-780.98,9.792e-05,2]
[346580617,1735113037696,-1759.93,9.792e-05,2]
[346580618,1735113037706,-2078.75,9.792e-05,2]
[346580619,1735113037716,-500.0,9.792e-05,2]
[346580620,1735113037725,-411.97527776,9.792e-05,2]
[346580621,1735113037735,-500.0,9.792e-05,2]
[346580622,1735113037744,-500.0,9.792e-05,2]
[346580623,1735113037754,-500.0,9.792e-05,2]
[346580624,1735113037763,-500.0,9.792e-05,2]
[346580625,1735113037773,-500.0,9.792e-05,2]
[346580626,1735113037783,-731.35,9.793e-05,2]
[346580627,1735113037792,-639.02,9.793e-05,2]
[346580628,1735113037801,-1968.09,9.793e-05,2]
[346580629,1735113037811,-574.26,9.793e-05,2]
[346580630,1735113037820,-1912.68,9.793e-05,2]
[346580632,1735113037830,-949.81,9.793e-05,2]
[346580634,1735113037839,-500.0,9.793e-05,2]
[346580636,1735113037848,-500.0,9.793e-05,2]
[346580637,1735113037858,-500.0,9.793e-05,2]
[346580638,1735113037868,-647.85,9.793e-05,2]
[346580639,1735113037877,-888.44,9.793e-05,2]
[346580640,1735113037887,-1239.6,9.793e-05,2]
[346580641,1735113037896,-627.2742387,9.793e-05,2]
[346580642,1735113037905,-500.0,9.793e-05,2]
[346580644,1735113037914,-821.55,9.793e-05,2]
[346580646,1735113037923,-1285.7,9.793e-05,2]
[346580647,1735113037932,-1961.47,9.793e-05,2]
[346580648,1735113037942,-1148.97,9.793e-05,2]
[346580649,1735113037951,-512.02,9.793e-05,2]
[346580651,1735113037959,-1464.05,9.793e-05,2]
[346580653,1735113037968,-952.46,9.793e-05,2]
[346580655,1735113037977,-500.0,9.793e-05,2]
[346580657,1735113037986,-931.41,9.793e-05,2]
[346580658,1735113037994,-500.0,9.793e-05,2]
[346580659,1735113038003,-573.15,9.793e-05,2]
[346580660,1735113038012,-752.75,9.793e-05,2]
[346580661,1735113038021,-521.30140992,9.793e-05,2]
[346580662,1735113038030,-500.0,9.793e-05,2]
[346580663,1735113038039,-1113.86,9.793e-05,2]
[346580664,1735113038048,-1310.48,9.793e-05,2]
[346580665,1735113038057,-504.65,9.793e-05,2]
[346580666,1735113038067,-860.0,9.793e-05,2]
[346580667,1735113038075,-1483.19,9.793e-05,2]
[346580669,1735113038085,-161.603888,9.793e-05,2]
[346580671,1735113038095,-153.897082,9.793e-05,2]
[346580673,1735113038105,-1557.43,9.793e-05,2]
[346580674,1735113038115,-2577.080715,9.793e-05,2]
[346580675,1735113038124,-581.35,9.793e-05,2]
[346580676,1735113038134,-2603.844221,9.793e-05,2]
[346580678,1735113038144,-500.0,9.793e-05,2]
[346580680,1735113038153,-1411.93,9.793e-05,2]
[346580681,1735113038162,-840.33,9.793e-05,2]
[346580682,1735113038399,-500.0,9.793e-05,2]
[346580683,1735113038418,-627.51,9.793e-05,2]
[346580684,1735113038428,-500.0,9.793e-05,2]
[346580685,1735113038438,-500.0,9.793e-05,2]
[346580686,1735113038448,-576.08,9.793e-05,2]
[346580687,1735113038458,-500.0,9.793e-05,2]
[346580688,1735113038469,-500.0,9.793e-05,2]
[346580689,1735113038479,-500.0,9.793e-05,2]
[346580690,1735113038489,-500.0,9.793e-05,2]
[346580691,1735113038499,-1170.35,9.793e-05,2]
[346580692,1735113038508,-500.90336498,9.793e-05,2]
[346580693,1735113038518,-501.51,9.793e-05,2]
[346580694,1735113038527,-500.0,9.793e-05,2]
[346580695,1735113038537,-500.0,9.793e-05,2]
[346580696,1735113038547,-500.0,9.793e-05,2]
[346580697,1735113038556,-149.87428149,9.793e-05,2]
[346580698,1735113038572,-542.36571851,9.793e-05,2]
[346580699,1735113038582,-958.89947996,9.793e-05,2]
[346580700,1735113038631,-409.18052004,9.793e-05,2]
[346580701,1735113038643,-15.66924953,9.793e-05,2]
[346580704,1735113040010,-484.33075047,9.793e-05,2]
[346580705,1735113040020,-165.51826282,9.793e-05,2]
[346580706,1735113040032,-334.48173718,9.793e-05,2]
[346580707,1735113040041,-209.86300128,9.793e-05,2]
[346580709,1735113040081,-683.78699872,9.793e-05,2]
[346580711,1735113040091,-168.44195994,9.793e-05,2]
[346580713,1735113040102,-611.42804006,9.793e-05,2]
[346580714,1735113040111,-268.29160009,9.793e-05,2]
[346580715,1735113040121,-500.0,9.793e-05,2]
[346580716,1735113040130,-2141.11,9.793e-05,2]
[346580717,1735113040140,-1479.17035985,9.793e-05,2]
[346580718,1735113040151,-521.01964015,9.793e-05,2]
[346580719,1735113040160,-677.73,9.793e-05,2]
[346580720,1735113040169,-977.87,9.793e-05,2]
[346580721,1735113040179,-500.0,9.793e-05,2]
[346580722,1735113040188,-158.48497585,9.793e-05,2]
[346580723,1735113040199,-537.49993158,9.793e-05,2]
[346580724,1735113040425,-253.90758358,9.793e-05,2]
[346580728,1735113042635,-612.39,9.792e-05,2]
[346580729,1735113042649,-500.0,9.792e-05,2]
[346580730,1735113042659,-366.20578891,9.792e-05,2]
[346580731,1735113042669,-500.0,9.792e-05,2]
[346580732,1735113042678,-588.35691122,9.792e-05,2]
[346580733,1735113042688,-85.47750899,9.793e-05,2]
[346580734,1735113042698,-500.0,9.793e-05,2]
[346580735,1735113042707,-1030.32,9.793e-05,2]
[346580736,1735113042717,-547.35,9.793e-05,2]
[346580737,1735113042726,-500.0,9.793e-05,2]
[346580738,1735113042737,-500.0,9.793e-05,2]
[346580739,1735113042747,-500.0,9.793e-05,2]
[346580740,1735113042756,-500.0,9.793e-05,2]
[346580741,1735113042766,-500.0,9.793e-05,2]
[346580742,1735113042775,-509.74352181,9.793e-05,2]
[346580743,1735113042785,-500.0,9.793e-05,2]
[346580744,1735113042794,-573.91,9.793e-05,2]
[346580745,1735113042804,-1750.31,9.793e-05,2]
[346580746,1735113042813,-500.0,9.793e-05,2]
[346580747,1735113042822,-500.0,9.793e-05,2]
[346580748,1735113042832,-500.0,9.793e-05,2]
[346580749,1735113042842,-590.21,9.793e-05,2]
[346580750,1735113042852,-500.0,9.793e-05,2]
[346580751,1735113042862,-694.6,9.793e-05,2]
[346580752,1735113042872,-772.47,9.793e-05,2]
[346580753,1735113042881,-686.32,9.793e-05,2]
[346580754,1735113042892,-754.67,9.793e-05,2]
[346580755,1735113042902,-500.0,9.793e-05,2]
[346580756,1735113042911,-500.0,9.793e-05,2]
[346580757,1735113042920,-500.0,9.793e-05,2]
[346580758,1735113042930,-500.0,9.793e-05,2]
[346580759,1735113042939,-708.47,9.793e-05,2]
[346580760,1735113042948,-3615.43,9.793e-05,2]
[346580761,1735113042958,-500.0,9.793e-05,2]
[346580762,1735113042967,-2121.69,9.793e-05,2]
[346580763,1735113042977,-500.0,9.793e-05,2]
[346580764,1735113042987,-10489.09,9.793e-05,2]
[346580765,1735113042996,-1224.04,9.793e-05,2]
[346580766,1735113043006,-1034.82,9.793e-05,2]
[346580767,1735113043015,-2008.88,9.793e-05,2]
[346580768,1735113043025,-952.67,9.793e-05,2]
[346580769,1735113043034,-1313.05,9.793e-05,2]
[346580770,1735113043044,-500.0,9.793e-05,2]
[346580771,1735113043054,-1110.33,9.793e-05,2]
[346580772,1735113043063,-1292.84,9.793e-05,2]
[346580773,1735113043073,-560.24,9.793e-05,2]
[346580775,1735113043083,-503.39429379,9.793e-05,2]
[346580777,1735113043093,-500.0,9.793e-05,2]
[346580779,1735113043102,-500.0,9.793e-05,2]
[346580781,1735113043112,-500.0,9.793e-05,2]
[346580783,1735113043121,-531.54,9.793e-05,2]
[346580785,1735113043130,-500.0,9.793e-05,2]
[346580787,1735113043140,-473.4543867,9.793e-05,2]
[346580789,1735113043149,-1814.23,9.793e-05,2]
[346580791,1735113043158,-579.51,9.793e-05,2]
[346580793,1735113043167,-1071.37,9.793e-05,2]
[346580795,1735113043176,-500.0,9.793e-05,2]
[346580797,1735113043186,-500.0,9.793e-05,2]
[346580800,1735113043196,-500.0,9.793e-05,2]
[346580802,1735113043206,-1027.32,9.793e-05,2]
[346580804,1735113043223,-500.0,9.793e-05,2]
[346580806,1735113043233,-500.0,9.793e-05,2]
[346580808,1735113043243,-500.0,9.793e-05,2]
[346580810,1735113043253,-1149.77,9.793e-05,2]
[346580812,1735113043264,-2185.35,9.793e-05,2]
[346580814,1735113043274,-2839.2,9.793e-05,2]
[346580816,1735113043284,-500.0,9.793e-05,2]
[346580818,1735113043294,-500.0,9.793e-05,2]
[346580820,1735113043303,-1142.38,9.793e-05,2]
[346580822,1735113043314,-2195.27,9.793e-05,2]
[346580824,1735113043324,-547.38,9.793e-05,2]
[346580826,1735113043333,-1265.16,9.793e-05,2]
[346580828,1735113043347,-4056.51,9.793e-05,2]
[346580830,1735113043356,-500.0,9.793e-05,2]
[346580832,1735113043366,-224.2476083,9.793e-05,2]
[346580834,1735113043375,-500.0,9.793e-05,2]
[346580835,1735113043385,-500.0,9.793e-05,2]
[346580837,1735113043397,-500.0,9.793e-05,2]
[346580839,1735113043407,-1146.1,9.793e-05,2]
[346580842,1735113043417,-2365.5,9.793e-05,2]
[346580844,1735113043427,-2761.23,9.793e-05,2]
[346580846,1735113043437,-7142.43431864,9.793e-05,2]
[346580853,1735113043498,-3948.605571,9.793e-05,2]
[346580858,1735113043540,-2438.03329522,9.793e-05,2]
[346580917,1735113045473,-500.0,9.792e-05,2]
[346580918,1735113045482,-347.86681514,9.793e-05,2]
[346580919,1735113045492,-3774.46,9.793e-05,2]
[346580920,1735113045501,-1365.73,9.793e-05,2]
[346580921,1735113045511,-680.58,9.793e-05,2]
[346580922,1735113045520,-500.0,9.793e-05,2]
[346580923,1735113045529,-556.59848299,9.793e-05,2]
[346580924,1735113045538,-500.0,9.793e-05,2]
[346580925,1735113045547,-1017.76,9.793e-05,2]
[346580926,1735113045556,-4224.09,9.793e-05,2]
[346580927,1735113045565,-500.0,9.793e-05,2]
[346580928,1735113045574,-21657.13,9.793e-05,2]
[346580929,1735113045584,-2104.28,9.793e-05,2]
[346580930,1735113045593,-3803.91,9.793e-05,2]
[346580931,1735113045602,-500.0,9.793e-05,2]
[346580932,1735113045611,-1493.62,9.793e-05,2]
[346580933,1735113045620,-500.0,9.793e-05,2]
[346580934,1735113045629,-726.62,9.793e-05,2]
[346580935,1735113045638,-2413.64,9.793e-05,2]
[346580936,1735113045648,-7304.29,9.793e-05,2]
[346580937,1735113045658,-715.1,9.793e-05,2]
[346580938,1735113045667,-2888.1,9.793e-05,2]
[346580939,1735113045676,-500.0,9.793e-05,2]
[346580940,1735113045685,-500.0,9.793e-05,2]
[346580941,1735113045694,-500.0,9.793e-05,2]
[346580942,1735113045703,-1486.78,9.793e-05,2]
[346580943,1735113045713,-4175.16,9.793e-05,2]
[346580944,1735113045722,-500.0,9.793e-05,2]
[346580945,1735113045731,-1743.06,9.793e-05,2]
[346580946,1735113045740,-1417.2,9.793e-05,2]
[346580947,1735113045749,-500.0,9.793e-05,2]
[346580948,1735113045759,-694.52,9.793e-05,2]
[346580949,1735113045768,-503.0,9.793e-05,2]
[346580950,1735113045777,-1848.55,9.793e-05,2]
[346580951,1735113045787,-610.08,9.793e-05,2]
[346580952,1735113045796,-16418.47405684,9.793e-05,2]
[346580953,1735113045860,-369.98683477,9.793e-05,2]
[346580954,1735113045871,-1188.38910839,9.793e-05,2]
[346580955,1735113045881,-504.42,9.793e-05,2]
[346580956,1735113045890,-5047.51,9.793e-05,2]
[346580957,1735113045899,-1260.49,9.793e-05,2]
[346580958,1735113045908,-500.0,9.793e-05,2]
[346580959,1735113045918,-805.02,9.793e-05,2]
[346580960,1735113045927,-4967.05,9.793e-05,2]
[346580961,1735113045936,-8150.25,9.793e-05,2]
[346580962,1735113045945,-2515.53,9.793e-05,2]
[346580963,1735113045955,-500.0,9.793e-05,2]
[346580964,1735113045964,-4370.1,9.793e-05,2]
[346580965,1735113045973,-500.0,9.793e-05,2]
[346580966,1735113045982,-13505.43,9.793e-05,2]
[346580967,1735113045992,-500.0,9.793e-05,2]
[346580968,1735113046001,-2214.44,9.793e-05,2]
[346580969,1735113046011,-7293.27984356,9.793e-05,2]
[346580970,1735113046169,-22.60015644,9.793e-05,2]
[346580971,1735113046178,-257.24232503,9.793e-05,2]
[346580989,1735113085657,37482.18148228,9.5e-05,2]
[346580990,1735113085683,1233289.81851772,9.5e-05,2]
[346580991,1735113088598,346.767,9.31e-05,2]
[346580992,1735113133896,-487.92242706,9.624e-05,2]
[346580993,1735113133918,-7147.0,9.696e-05,2]
[346580994,1735113133939,-1500.0,9.717e-05,2]
[346580995,1735113133961,-28156.71959024,9.791e-05,2]
[346580996,1735113133983,-340.90471347,9.792e-05,2]
[346580997,1735113134004,-500.0,9.792e-05,2]
[346580998,1735113134027,-550.33,9.792e-05,2]
[346580999,1735113134049,-1886.08,9.792e-05,2]
[346581000,1735113134076,-1317.48,9.792e-05,2]
[346581001,1735113134099,-10052.05,9.792e-05,2]
[346581002,1735113134122,-910.24,9.792e-05,2]
[346581003,1735113134145,-1925.17,9.792e-05,2]
[346581004,1735113134167,-500.0,9.792e-05,2]
[346581005,1735113134190,-500.0,9.792e-05,2]
[346581006,1735113134216,-620.86,9.792e-05,2]
[346581007,1735113134240,-500.0,9.792e-05,2]
[346581008,1735113134266,-195.81652449,9.792e-05,2]
[346581009,1735113134289,-1238.98,9.792e-05,2]
[346581010,1735113134313,-851.42,9.792e-05,2]
[346581011,1735113134336,-1187.95,9.792e-05,2]
[346581012,1735113134360,-2343.39,9.792e-05,2]
[346581013,1735113134382,-4515.37,9.792e-05,2]
[346581014,1735113134405,-500.0,9.792e-05,2]
[346581015,1735113134429,-1101.86,9.792e-05,2]
[346581016,1735113134452,-2720.9,9.792e-05,2]
[346581017,1735113134477,-787.32,9.792e-05,2]
[346581018,1735113134503,-2266.93,9.792e-05,2]
[346581019,1735113134525,-3887.49,9.792e-05,2]
[346581020,1735113134760,-1879.74,9.792e-05,2]
[346581021,1735113134784,-1232.13,9.792e-05,2]
[346581022,1735113134807,-1101.09,9.792e-05,2]
[346581023,1735113134838,-1403.05,9.792e-05,2]
[346581024,1735113134867,-13298.73,9.792e-05,2]
[346581025,1735113134892,-2016.6,9.792e-05,2]
[346581026,1735113134917,-379.10836419,9.792e-05,2]
[346581027,1735113134943,-500.0,9.792e-05,2]
[346581028,1735113134968,-500.0,9.792e-05,2]
[346581029,1735113134993,-490.47359672,9.792e-05,2]
[346581030,1735113135018,-242.75767497,9.793e-05,2]
[346581031,1735113135043,-9684.34,9.793e-05,2]
[346581032,1735113135067,-612.23,9.793e-05,2]
[346581033,1735113135092,-500.0,9.793e-05,2]
[346581034,1735113135116,-510.22042067,9.793e-05,2]
[346581035,1735113135140,-3303.03,9.793e-05,2]
[346581036,1735113135163,-1760.57,9.793e-05,2]
[346581037,1735113135185,-500.0,9.793e-05,2]
[346581038,1735113135208,-500.0,9.793e-05,2]
[346581039,1735113135230,-1312.94,9.793e-05,2]
[346581040,1735113135257,-500.0,9.793e-05,2]
[346581041,1735113135283,-3109.17,9.793e-05,2]
[346581042,1735113135306,-682.96,9.793e-05,2]
[346581043,1735113135329,-1672.3,9.793e-05,2]
[346581044,1735113135353,-500.0,9.793e-05,2]
[346581045,1735113135381,-6355.69,9.793e-05,2]
[346581046,1735113135404,-500.0,9.793e-05,2]
[346581047,1735113135427,-12927.7,9.793e-05,2]
[346581048,1735113135454,-500.0,9.793e-05,2]
[346581049,1735113135482,-1555.71,9.793e-05,2]
[346581050,1735113135506,-1483.67,9.793e-05,2]
[346581051,1735113135531,-500.0,9.793e-05,2]
[346581052,1735113135555,-762.37,9.793e-05,2]
[346581053,1735113135580,-3887.0,9.793e-05,2]
[346581054,1735113135605,-809.12,9.793e-05,2]
[346581055,1735113135628,-5767.83,9.793e-05,2]
[346581056,1735113135651,-501.77066245,9.793e-05,2]
[346581057,1735113135674,-7417.44,9.793e-05,2]
[346581058,1735113135696,-1746.35,9.793e-05,2]
[346581059,1735113135720,-500.0,9.793e-05,2]
[346581060,1735113135744,-1000.61,9.793e-05,2]
[346581061,1735113135768,-591.19,9.793e-05,2]
[346581062,1735113135792,-500.0,9.793e-05,2]
[346581063,1735113135816,-17632.33,9.793e-05,2]
[346581064,1735113135838,-1013.45,9.793e-05,2]
[346581065,1735113135862,-4643.96,9.793e-05,2]
[346581066,1735113135889,-675.97,9.793e-05,2]
[346581067,1735113135913,-500.0,9.793e-05,2]
[346581068,1735113135936,-5767.81,9.793e-05,2]
[346581069,1735113135959,-686.18,9.793e-05,2]
[346581070,1735113135983,-500.0,9.793e-05,2]
[346581071,1735113136006,-1385.98,9.793e-05,2]
[346581072,1735113136029,-197.93827407,9.793e-05,2]
[346581073,1735113136053,-8114.95,9.793e-05,2]
[346581074,1735113136077,-1411.4,9.793e-05,2]
[346581075,1735113136100,-1546.19,9.793e-05,2]
[346581076,1735113136124,-1520.73,9.793e-05,2]
[346581077,1735113136147,-505.76537573,9.793e-05,2]
[346581078,1735113136169,-500.0,9.793e-05,2]
[346581079,1735113136192,-8355.49,9.793e-05,2]
[346581080,1735113136216,-500.0,9.793e-05,2]
[346581081,1735113136240,-500.0,9.793e-05,2]
[346581082,1735113136265,-500.0,9.793e-05,2]
[346581083,1735113136292,-2826.4,9.793e-05,2]
[346581084,1735113136315,-500.0,9.793e-05,2]
[346581085,1735113136339,-500.0,9.793e-05,2]
[346581086,1735113136362,-500.0,9.793e-05,2]
[346581087,1735113136385,-507.24993611,9.793e-05,2]
[346581088,1735113136408,-500.0,9.793e-05,2]
[346581089,1735113136431,-500.0,9.793e-05,2]
[346581090,1735113136454,-500.0,9.793e-05,2]
[346581091,1735113136477,-500.0,9.793e-05,2]
[346581092,1735113136500,-500.0,9.793e-05,2]
[346581093,1735113136523,-500.0,9.793e-05,2]
[346581094,1735113136545,-500.0,9.793e-05,2]
[346581095,1735113136568,-756.23,9.793e-05,2]
[346581096,1735113136591,-2051.14,9.793e-05,2]
[346581097,1735113136613,-500.93642395,9.793e-05,2]
[346581098,1735113136635,-500.0,9.793e-05,2]
[346581099,1735113136657,-500.0,9.793e-05,2]
[346581100,1735113136679,-2307.06,9.793e-05,2]
[346581101,1735113136702,-509.92807036,9.793e-05,2]
[346581102,1735113136726,-500.0,9.793e-05,2]
[346581103,1735113136748,-2954.88,9.793e-05,2]
[346581104,1735113136770,-543.88682228,9.793e-05,2]
[346581105,1735113136793,-500.0,9.793e-05,2]
[346581106,1735113136816,-967.26,9.793e-05,2]
[346581107,1735113136839,-500.0,9.793e-05,2]
[346581108,1735113136862,-2331.19,9.793e-05,2]
[346581109,1735113136885,-9399.97,9.793e-05,2]
[346581110,1735113136907,-501.03463622,9.793e-05,2]
[346581111,1735113136930,-500.0,9.793e-05,2]
[346581112,1735113136977,-500.0,9.793e-05,2]
[346581113,1735113137000,-3026.42,9.793e-05,2]
[346581114,1735113137023,-1834.1,9.793e-05,2]
[346581115,1735113137046,-500.0,9.793e-05,2]
[346581116,1735113137069,-500.0,9.793e-05,2]
[346581117,1735113137092,-1094.78,9.793e-05,2]
[346581118,1735113137114,-584.51,9.793e-05,2]
[346581119,1735113137136,-500.0,9.793e-05,2]
[346581120,1735113137159,-1085.57,9.793e-05,2]
[346581121,1735113137182,-647.09,9.793e-05,2]
[346581122,1735113137205,-694.64,9.793e-05,2]
[346581123,1735113137229,-195.81652449,9.793e-05,2]
[346581124,1735113137255,-2189.32,9.793e-05,2]
[346581125,1735113137279,-3141.73,9.793e-05,2]
[346581126,1735113137303,-510.76,9.793e-05,2]
[346581127,1735113137327,-500.84632439,9.793e-05,2]
[346581128,1735113137350,-500.0,9.793e-05,2]
[346581129,1735113137372,-500.0,9.793e-05,2]
[346581130,1735113137395,-998.31,9.793e-05,2]
[346581131,1735113137418,-508.098425,9.793e-05,2]
[346581132,1735113137441,-382.62521314,9.793e-05,2]
[346581133,1735113208963,715.81,8.219e-05,2]
[346581134,1735113216279,-3817.25561366,0.00013,15]
[346581135,1735113249600,-9782.74438634,0.000129,7]
[346581140,1735113420669,-150.0,9.605e-05,2]
[346581141,1735113420693,-150.0,9.617e-05,2]
[346581142,1735113420720,-150.0,9.668e-05,2]
[346581143,1735113420745,-150.0,9.676e-05,2]
[346581144,1735113420772,-150.0,9.754e-05,2]
[346581145,1735113420796,-500.0,9.791e-05,2]